bitfinex/quotes_ETHUSD_20250517
["timestamp","ask_amount","ask_price","bid_price","bid_amount"]
[1747470359015,4.02495471,2484.5,2484.2,0.7563]
[1747470359377,4.0252567,2484.4,2484.2,0.7563]
[1747470359582,4.02527875,2484.3,2484.2,0.7563]
[1747470360321,4.02519054,2484.4,2484.2,0.7563]
[1747470360526,4.02512161,2484.4,2484.2,0.7563]
[1747470361178,4.02483426,2484.6,2484.2,0.7563]
[1747470361398,4.02510218,2484.5,2484.2,0.7563]
[1747470361579,4.02512767,2484.4,2484.2,0.7563]
[1747470362311,4.85104228,2484.7,2484.2,0.7563]
[1747470362512,4.02464228,2484.7,2484.2,0.7563]
[1747470362713,4.02496631,2484.5,2484.2,0.7563]
[1747470362907,4.02496631,2484.5,2484.2,2.06870033]
[1747470363532,4.02513076,2484.4,2484.2,2.06870033]
[1747470363716,4.02479777,2484.6,2484.2,2.06870033]
[1747470363918,4.02468755,2484.7,2484.3,0.04025048]
[1747470364123,4.02496292,2484.5,2484.2,2.06870033]
[1747470364491,4.02486137,2484.6,2484.2,2.06870033]
[1747470366620,4.02471533,2484.7,2484.3,1.44362152]
[1747470367039,4.02440566,2484.9,2484.4,4.0251113]
[1747470367841,4.02447625,2484.8,2484.3,5.46886093]
[1747470368207,4.0246418,2484.7,2484.3,5.46886093]
[1747470368435,4.0246418,2484.7,2484.4,0.75375613]
[1747470368642,4.02455322,2484.8,2484.4,0.75375613]
[1747470370107,4.02456568,2484.8,2484.4,0.75375613]
[1747470370311,4.02437648,2484.9,2484.4,4.77883902]
[1747470370513,4.02447767,2484.8,2484.4,4.77883902]
[1747470370740,4.02447767,2484.8,2484.5,0.62224605]
[1747470370934,4.02447767,2484.8,2484.6,8.34]
[1747470371337,4.02439618,2484.9,2484.6,8.34]
[1747470372440,4.02439618,2484.9,2484.6,14.35775749]
[1747470372644,4.0242414,2485.0,2484.7,0.7923]
[1747470372943,4.0240141,2485.1,2484.7,2.17024719]
[1747470373312,4.02382292,2485.2,2484.7,6.19477023]
[1747470374961,4.02374295,2485.3,2484.8,4.02443357]
[1747470376042,0.8302,2485.5,2484.9,4.02430496]
[1747470376243,4.0236034,2485.4,2485.0,0.40645452]
[1747470376444,4.02373549,2485.3,2485.1,8.339]
[1747470376751,4.02382102,2485.2,2485.1,8.339]
[1747470379250,4.02368911,2485.3,2485.1,8.339]
[1747470379251,4.02371979,2485.3,2485.1,8.339]
[1747470379550,8.29445957,2485.7,2485.1,8.339]
[1747470379853,4.02382102,2485.2,2485.1,8.339]
[1747470380659,4.02374719,2485.3,2485.1,8.339]
[1747470380866,4.02374719,2485.3,2485.1,9.85390575]
[1747470381165,4.0234146,2485.5,2485.1,9.85390575]
[1747470381557,4.02326612,2485.6,2485.1,13.87785051]
[1747470381722,4.02324247,2485.6,2485.1,19.89558839]
[1747470381927,4.02324247,2485.6,2485.2,2.06878884]
[1747470382327,0.8051,2486.0,2485.3,6.01775749]
[1747470382565,4.02297181,2485.8,2485.3,10.04134124]
[1747470382759,2.81564324,2486.0,2485.4,8.325]
[1747470382966,4.02328668,2485.6,2485.4,8.325]
[1747470383167,4.02328668,2485.6,2485.4,9.96615463]
[1747470383365,4.02310077,2485.7,2485.4,9.96615463]
[1747470383733,4.02302346,2485.7,2485.5,0.8228]
[1747470384234,4.02317347,2485.6,2485.5,0.8228]
[1747470384451,4.02317347,2485.6,2485.4,9.96615463]
[1747470384779,0.8051,2486.0,2485.5,1.68067121]
[1747470384780,4.02292857,2485.8,2485.5,1.68067121]
[1747470384993,4.02309101,2485.7,2485.5,1.68067121]
[1747470385136,4.02317347,2485.6,2485.5,1.68067121]
[1747470385536,4.02333534,2485.5,2485.4,8.325]
[1747470386172,4.02327862,2485.6,2485.4,8.325]
[1747470387374,4.02308192,2485.7,2485.4,8.325]
[1747470388374,4.02308192,2485.7,2485.5,8.324]
[1747470389340,4.02317347,2485.6,2485.5,8.324]
[1747470389540,4.02309851,2485.7,2485.5,8.324]
[1747470390792,4.02324624,2485.6,2485.4,6.01775749]
[1747470390995,4.02324624,2485.6,2485.5,8.323]
[1747470393570,4.02324624,2485.6,2485.5,6.01775749]
[1747470393771,5.63467282,2485.6,2485.5,6.01775749]
[1747470394460,4.83004624,2485.6,2485.5,6.01775749]
[1747470396089,4.02324624,2485.6,2485.5,6.01775749]
[1747470396260,4.02311717,2485.7,2485.5,6.01775749]
[1747470396465,8.0,2485.9,2485.4,8.323]
[1747470396773,4.02268796,2485.9,2485.4,8.323]
[1747470397154,4.02301542,2485.7,2485.4,8.323]
[1747470397901,4.82935707,2486.0,2485.5,0.8215]
[1747470398202,4.02274477,2485.9,2485.5,6.83925749]
[1747470398862,5.05292644,2486.0,2485.5,6.83925749]
[1747470399064,0.22358741,2486.0,2485.5,12.78116068]
[1747470399262,4.24621674,2486.0,2485.5,12.78116068]
[1747470399696,4.02262933,2486.0,2485.5,12.78116068]
[1747470399907,4.02253381,2486.0,2485.5,12.78107025]
[1747470400116,4.02280565,2485.9,2485.6,2.51274988]
[1747470400491,4.02259443,2486.0,2485.6,2.51274988]
[1747470401800,4.02243618,2486.1,2485.6,6.53591019]
[1747470402211,0.8022,2486.5,2485.7,6.56775749]
[1747470402374,4.02212219,2486.3,2485.8,10.86201099]
[1747470402580,4.02204078,2486.3,2485.9,9.4632011]
[1747470402980,4.02221138,2486.2,2485.9,9.4632011]
[1747470403912,4.02198989,2486.4,2485.9,13.48588677]
[1747470404116,4.02198989,2486.4,2486.0,2.14748238]
[1747470404315,4.82365954,2486.7,2486.0,6.16992219]
[1747470404490,0.8022,2486.7,2486.2,4.84357916]
[1747470404816,4.02125509,2486.8,2486.3,4.02197193]
[1747470405017,4.02132821,2486.8,2486.4,8.322]
[1747470405319,4.24496998,2486.9,2486.4,8.322]
[1747470405320,0.2238332,2486.9,2486.5,4.02158774]
[1747470405510,0.47476746,2487.0,2486.6,4.02153772]
[1747470405686,0.47476746,2487.0,2486.6,4.02147638]
[1747470405887,0.47476746,2487.0,2486.5,4.84313493]
[1747470406221,0.47476746,2487.0,2486.5,4.84310868]
[1747470406385,0.47476746,2487.0,2486.6,6.3004116]
[1747470406721,4.02082991,2487.1,2486.6,2.27896581]
[1747470407079,4.02064371,2487.2,2486.7,4.0213888]
[1747470407315,4.82235088,2487.5,2486.8,0.8215]
[1747470407616,4.02043906,2487.3,2486.9,8.322]
[1747470407796,4.02043906,2487.3,2486.9,9.64248583]
[1747470407992,4.02026212,2487.4,2486.9,9.64248583]
[1747470408196,4.02061004,2487.2,2486.9,9.64248583]
[1747470408983,4.02046097,2487.3,2486.9,9.64248583]
[1747470409184,4.82236411,2487.5,2487.0,1.44851197]
[1747470409404,0.8022,2487.5,2487.0,1.44851197]
[1747470409616,4.02027623,2487.4,2487.0,1.44851197]
[1747470409820,4.02042375,2487.3,2487.0,1.44851197]
[1747470410395,4.02029126,2487.4,2487.0,1.44851197]
[1747470410596,4.02066018,2487.2,2487.0,1.44851197]
[1747470412221,4.02048877,2487.3,2487.0,1.44851197]
[1747470412521,4.02049599,2487.3,2487.0,1.44851197]
[1747470413120,8.8163,2487.7,2487.0,1.44851197]
[1747470413323,4.01993889,2487.6,2487.0,5.46928865]
[1747470413625,4.01968024,2487.8,2487.3,4.0203164]
[1747470413919,0.7956,2487.9,2487.4,8.299]
[1747470414095,4.01981381,2487.7,2487.4,8.299]
[1747470414420,0.7956,2487.9,2487.4,8.299]
[1747470414421,4.81511652,2487.9,2487.4,8.299]
[1747470414637,4.019805,2487.7,2487.4,8.299]
[1747470414810,4.019805,2487.7,2487.5,0.8299]
[1747470415224,4.01948397,2487.9,2487.5,0.8299]
[1747470415426,4.01922803,2488.1,2487.6,4.80162783]
[1747470415625,4.01929671,2488.0,2487.6,0.7817]
[1747470416149,4.01923557,2488.1,2487.6,4.80155389]
[1747470416344,4.01923557,2488.1,2487.6,7.49293977]
[1747470416845,4.01929922,2488.0,2487.6,3.47308588]
[1747470417342,4.0189995,2488.2,2487.6,3.47308588]
[1747470417343,4.01926942,2488.1,2487.6,3.47308588]
[1747470417705,4.01926942,2488.1,2487.6,7.49301244]
[1747470417906,4.01902208,2488.2,2487.7,4.01973832]
[1747470418242,4.01902208,2488.2,2487.8,0.74928242]
[1747470418406,4.01872634,2488.4,2487.9,12.35753338]
[1747470418601,4.01864651,2488.4,2488.0,0.7978]
[1747470418925,4.01856761,2488.5,2488.0,0.7978]
[1747470419128,4.01856761,2488.5,2488.0,2.58620562]
[1747470419129,4.01862692,2488.5,2488.0,2.58620562]
[1747470419315,0.8101,2488.7,2488.0,2.58620562]
[1747470419502,4.82838759,2488.7,2488.1,4.01903988]
[1747470419708,4.01835982,2488.6,2488.2,0.0401848]
[1747470419925,0.73051448,2489.1,2488.2,0.83798356]
[1747470420121,0.73051448,2489.1,2488.5,0.7978]
[1747470420366,0.73051448,2489.1,2488.8,4.81571342]
[1747470420675,0.73051448,2489.1,2488.9,8.297]
[1747470420837,2.00623297,2489.7,2489.0,8.04017127]
[1747470421046,2.00623297,2489.7,2489.5,0.7978]
[1747470421373,2.00623297,2489.7,2489.6,8.297]
[1747470422154,2.00623297,2489.7,2489.6,8.847]
[1747470422928,2.00623297,2489.7,2489.6,17.134]
[1747470423366,2.00623297,2489.7,2489.6,19.32885804]
[1747470423526,2.00623297,2489.7,2489.6,31.34556755]
[1747470424256,0.73051448,2490.5,2490.0,0.7575]
[1747470424458,0.73051448,2490.5,2490.1,16.62015338]
[1747470424649,4.74577735,2490.5,2490.1,16.58]
[1747470424857,0.73051448,2490.5,2490.1,17.08473101]
[1747470425064,4.0155151,2490.4,2490.2,8.294]
[1747470425242,4.01558045,2490.3,2490.2,8.294]
[1747470425643,4.01576648,2490.2,2490.0,9.0425]
[1747470425867,4.01565299,2490.3,2490.1,8.292]
[1747470426231,4.01565299,2490.3,2490.0,0.7575]
[1747470426434,4.01573684,2490.3,2490.1,8.292]
[1747470427442,4.0157417,2490.2,2490.0,9.0395]
[1747470427650,0.73051448,2490.5,2490.1,8.292]
[1747470427871,4.01544871,2490.4,2490.1,8.292]
[1747470428070,4.74578212,2490.5,2490.1,8.292]
[1747470428239,0.73051448,2490.5,2490.2,17.351]
[1747470428568,0.73051448,2490.5,2490.3,18.86516689]
[1747470429073,0.73051448,2490.5,2490.3,2.29216689]
[1747470429265,4.01558045,2490.3,2490.2,17.351]
[1747470429466,4.01558045,2490.3,2490.2,25.641]
[1747470429666,4.01558045,2490.3,2490.2,17.351]
[1747470429856,4.01662826,2489.7,2489.4,9.0365]
[1747470430067,1.56331448,2490.5,2489.5,2.63835]
[1747470430272,4.01623467,2489.9,2489.5,10.92835]
[1747470430458,0.8328,2490.3,2489.5,2.63835]
[1747470430662,4.01670951,2489.6,2489.3,17.347]
[1747470430864,4.01670951,2489.6,2489.4,8.29]
[1747470431059,4.01670951,2489.6,2489.3,17.347]
[1747470431359,4.01703221,2489.4,2489.3,25.637]
[1747470431580,4.01703221,2489.4,2489.3,17.347]
[1747470431777,4.01703221,2489.4,2489.3,25.637]
[1747470431995,4.01703221,2489.4,2488.6,17.98152751]
[1747470432186,4.01735497,2489.2,2489.1,8.29]
[1747470432491,4.01659025,2489.7,2489.1,8.29]
[1747470432492,8.0,2489.6,2489.1,8.29]
[1747470432693,8.277,2489.7,2489.1,9.119]
[1747470432861,4.01687085,2489.5,2489.1,9.119]
[1747470433295,4.01735497,2489.2,2488.6,17.347]
[1747470433494,12.29358161,2489.7,2488.6,17.347]
[1747470433495,0.8328,2489.5,2488.6,17.347]
[1747470433695,4.23812962,2489.5,2488.7,8.29]
[1747470433882,4.01800064,2488.8,2488.7,8.29]
[1747470434070,4.8498116,2489.5,2488.7,8.29]
[1747470434390,4.01712133,2489.4,2488.9,0.7575]
[1747470434592,4.01720009,2489.3,2488.9,0.7575]
[1747470435215,4.01738692,2489.2,2488.9,0.7575]
[1747470435517,4.01703882,2489.4,2488.9,0.7575]
[1747470435518,4.01726874,2489.3,2488.9,0.7575]
[1747470435807,4.01747458,2489.2,2488.9,0.7575]
[1747470436013,4.01747458,2489.2,2489.0,8.29]
[1747470436177,4.01725187,2489.3,2489.1,8.29]
[1747470436573,12.51312962,2489.8,2489.1,8.29]
[1747470436574,4.01718879,2489.4,2489.1,8.29]
[1747470436819,4.01690404,2489.5,2489.1,8.29]
[1747470436976,4.01703634,2489.4,2489.1,8.29]
[1747470437175,4.01720526,2489.3,2489.1,8.29]
[1747470437819,4.01711749,2489.4,2489.1,8.29]
[1747470438182,8.0,2490.0,2489.1,8.29]
[1747470438183,0.7533,2490.0,2489.2,1.5792]
[1747470438384,4.01622555,2489.9,2489.2,1.5792]
[1747470438579,0.7533,2490.0,2489.4,4.01692833]
[1747470438815,4.01589898,2490.2,2489.5,4.01677322]
[1747470438816,4.01605191,2490.1,2489.5,4.01677322]
[1747470439112,4.01607176,2490.0,2489.6,8.29]
[1747470439276,9.0263,2490.3,2489.6,8.29]
[1747470439479,0.73051448,2490.5,2489.8,4.01629746]
[1747470439789,4.74585194,2490.5,2489.9,0.04015607]
[1747470440113,4.74585194,2490.5,2489.7,13.03971532]
[1747470440114,4.01551305,2490.4,2489.7,13.03971532]
[1747470440280,4.01575747,2490.2,2489.8,2.13297153]
[1747470440612,4.01601293,2490.1,2489.9,8.29]
[1747470441317,0.7533,2490.3,2489.9,8.289]
[1747470441490,4.01606425,2490.0,2489.9,8.289]
[1747470442795,4.01622555,2489.9,2489.8,8.289]
[1747470443735,4.01670951,2489.6,2489.5,17.347]
[1747470443895,4.01670951,2489.6,2489.5,25.616]
[1747470444083,4.01670951,2489.6,2489.5,17.347]
[1747470444507,0.7993,2490.2,2489.5,25.616]
[1747470444826,4.01615136,2490.0,2489.5,25.616]
[1747470445038,4.01615136,2490.0,2489.6,0.7924]
[1747470445712,4.01623623,2489.9,2489.6,0.7924]
[1747470445912,4.016462,2489.8,2489.6,8.269]
[1747470446306,4.01606425,2490.0,2489.6,8.269]
[1747470446515,4.01654817,2489.7,2489.6,8.269]
[1747470447409,4.01687085,2489.5,2489.4,8.269]
[1747470448212,4.01730498,2489.3,2489.1,8.269]
[1747470448604,1.59109609,2489.7,2489.1,8.269]
[1747470448783,4.01697406,2489.5,2489.1,8.269]
[1747470448985,0.7878,2489.9,2489.2,0.38307067]
[1747470449219,9.69318,2489.9,2489.2,0.38307067]
[1747470449402,13.93318716,2489.9,2489.2,0.38307067]
[1747470449700,4.01697494,2489.5,2489.2,0.38307067]
[1747470450089,4.01704066,2489.4,2489.2,0.38307067]
[1747470450317,4.01694636,2489.5,2489.2,0.38307067]
[1747470450910,13.70942819,2489.9,2489.2,0.38307067]
[1747470450911,0.7878,2489.9,2489.2,1.76916535]
[1747470451112,8.265,2490.1,2489.4,4.01696083]
[1747470451322,8.265,2490.1,2489.3,0.38307067]
[1747470451625,4.01650407,2489.8,2489.3,4.40017123]
[1747470451826,4.01660321,2489.7,2489.3,3.01283063]
[1747470452408,4.01631043,2489.9,2489.4,4.40007795]
[1747470452994,4.01609743,2490.0,2489.5,4.84850597]
[1747470453428,4.01609743,2490.0,2489.5,0.8317]
[1747470453429,4.01623952,2489.9,2489.5,0.8317]
[1747470453635,0.7878,2490.2,2489.6,8.269]
[1747470453831,0.22398977,2490.4,2489.8,0.8317]
[1747470453998,0.22398977,2490.4,2489.8,4.8480556]
[1747470454198,0.22398977,2490.4,2489.9,4.05628375]
[1747470454500,4.23942113,2490.4,2489.9,4.01612733]
[1747470454695,4.01543136,2490.4,2489.9,5.72886017]
[1747470454902,4.01573427,2490.3,2489.9,1.71273284]
[1747470455530,4.01573427,2490.3,2490.0,0.38307067]
[1747470455725,4.01573427,2490.3,2490.1,8.269]
[1747470456237,4.01565421,2490.3,2490.1,8.269]
[1747470456835,4.01549185,2490.4,2490.1,8.269]
[1747470457546,0.73051448,2490.5,2490.1,9.53582898]
[1747470457746,0.73051448,2490.5,2490.2,4.01565157]
[1747470458049,4.01558045,2490.3,2490.2,0.38307067]
[1747470458410,4.78588045,2490.3,2490.2,0.38307067]
[1747470459432,4.0157417,2490.2,2490.1,8.269]
[1747470459835,4.01606425,2490.0,2489.9,0.48121272]
[1747470460441,4.01592849,2490.1,2489.9,0.48121272]
[1747470460738,4.01606425,2490.0,2489.9,0.48121272]
[1747470461110,4.01606425,2490.0,2489.8,6.01775749]
[1747470461864,0.73051448,2490.5,2489.8,6.01775749]
[1747470462037,12.27346604,2490.4,2489.9,5.44465962]
[1747470462351,0.73051448,2490.5,2490.1,0.7834]
[1747470462529,4.74591004,2490.5,2490.1,0.7834]
[1747470463957,4.01545939,2490.4,2490.1,0.7834]
[1747470464126,4.01558045,2490.3,2490.2,0.38358636]
[1747470465077,4.74586276,2490.5,2490.0,12.28396335]
[1747470465227,0.73051448,2490.5,2490.1,4.01582266]
[1747470465423,0.73051448,2490.5,2490.2,4.01569144]
[1747470465829,0.73051448,2490.5,2490.3,0.7834]
[1747470466170,0.73051448,2490.5,2490.3,1.26330914]
[1747470466351,0.73051448,2490.5,2490.4,4.0154192]
[1747470466527,0.73051448,2490.5,2490.3,7.28106663]
[1747470466857,0.73051448,2490.5,2490.3,11.2965601]
[1747470467250,0.73051448,2490.5,2490.4,4.39908538]
[1747470467582,0.73051448,2490.5,2490.4,5.96864993]
[1747470468033,0.73051448,2490.5,2490.4,11.98640742]
[1747470468224,0.73051448,2490.5,2490.4,7.28944993]
[1747470468421,0.73051448,2490.5,2490.4,15.28944993]
[1747470468661,8.253,2491.6,2490.4,15.28944993]
[1747470468662,2.00623297,2491.9,2491.0,4.01445202]
[1747470468866,0.782,2491.8,2491.1,9.14698117]
[1747470469071,4.01359048,2491.6,2491.1,9.14698117]
[1747470469367,4.01373196,2491.5,2491.1,9.14698117]
[1747470469565,4.01382674,2491.4,2491.1,9.14698117]
[1747470469774,4.01372443,2491.5,2491.1,9.14698117]
[1747470470144,4.01354703,2491.6,2491.2,1.31614267]
[1747470470348,4.01372596,2491.5,2491.2,1.31614267]
[1747470470561,4.01355371,2491.6,2491.2,1.31614267]
[1747470471565,4.01376988,2491.5,2491.2,1.31614267]
[1747470472141,4.01376988,2491.5,2491.0,4.01438768]
[1747470472142,4.01424657,2491.2,2491.0,8.266]
[1747470472341,4.01429087,2491.1,2491.0,8.266]
[1747470472742,4.01471181,2490.9,2490.7,18.59301272]
[1747470472986,4.01436875,2491.1,2490.8,8.266]
[1747470473141,4.01421407,2491.2,2490.8,8.266]
[1747470473341,4.01400612,2491.3,2490.8,15.64437696]
[1747470473566,4.01386564,2491.4,2490.9,4.01460051]
[1747470473775,4.0140019,2491.3,2491.0,0.7675]
[1747470473978,4.01396981,2491.3,2490.8,12.39718887]
[1747470474276,4.01422753,2491.2,2490.8,12.39718887]
[1747470474786,4.01455966,2491.0,2490.8,0.7675]
[1747470474946,4.01380749,2491.4,2490.8,8.249]
[1747470475143,4.01396381,2491.4,2490.8,8.249]
[1747470475347,4.01427919,2491.2,2490.8,8.249]
[1747470475564,4.01436542,2491.1,2490.8,8.249]
[1747470475877,4.01427919,2491.2,2490.8,8.249]
[1747470475878,4.01420336,2491.2,2490.8,8.249]
[1747470476087,4.01402386,2491.3,2490.9,3.72799165]
[1747470476388,4.01402386,2491.3,2490.9,0.7675]
[1747470476779,0.7802,2491.5,2490.9,0.7675]
[1747470476972,4.01414461,2491.2,2490.9,0.7675]
[1747470477470,4.01364639,2491.5,2490.9,4.78203832]
[1747470477671,4.01364639,2491.5,2491.0,4.01443595]
[1747470477867,12.25940696,2491.7,2491.1,4.01429087]
[1747470478073,4.76722794,2491.8,2491.2,4.01410537]
[1747470478379,4.76721626,2491.8,2491.0,5.71898448]
[1747470478584,4.01341409,2491.7,2491.2,4.01412643]
[1747470478791,4.01341409,2491.7,2491.1,12.26221745]
[1747470478986,4.01341409,2491.7,2491.1,14.13708764]
[1747470479186,4.01341409,2491.7,2491.2,4.01399865]
[1747470479495,0.754,2491.8,2491.3,0.7574]
[1747470479496,4.01360496,2491.6,2491.3,0.7574]
[1747470479686,4.01340834,2491.7,2491.3,0.7574]
[1747470480119,4.01348962,2491.6,2491.3,0.7574]
[1747470480383,4.01323987,2491.8,2491.3,4.77126877]
[1747470480571,4.01323987,2491.8,2491.3,2.24685196]
[1747470480772,8.17218498,2492.0,2491.2,8.247]
[1747470481086,8.17218498,2492.0,2491.1,0.7574]
[1747470481087,4.01396861,2491.3,2490.9,0.7749]
[1747470481266,4.01412973,2491.2,2491.0,8.247]
[1747470481466,8.8103,2491.7,2491.0,8.247]
[1747470481790,4.01357748,2491.6,2491.1,4.01425562]
[1747470482195,4.82377937,2491.7,2491.2,0.7749]
[1747470482196,4.01342405,2491.7,2491.2,0.7749]
[1747470482397,4.01332978,2491.7,2491.2,4.78895807]
[1747470482563,12.256058,2491.9,2491.2,0.7749]
[1747470482564,4.01353282,2491.6,2491.2,0.7749]
[1747470482891,4.01340002,2491.7,2491.2,4.78902833]
[1747470483095,0.7725,2491.6,2491.2,8.247]
[1747470483295,4.0141285,2491.3,2491.2,8.247]
[1747470483487,4.0141285,2491.3,2490.8,4.84436218]
[1747470483688,4.0141285,2491.3,2490.9,8.247]
[1747470483860,4.0141285,2491.3,2490.9,8.62974426]
[1747470484066,4.01443177,2491.1,2490.9,8.62974426]
[1747470484402,4.01445202,2491.0,2490.9,0.38274426]
[1747470484573,4.01433051,2491.1,2490.9,8.62974426]
[1747470485066,4.78666086,2491.2,2490.9,8.62974426]
[1747470485398,4.01429476,2491.1,2490.9,8.62974426]
[1747470485595,4.01429087,2491.1,2490.9,8.62974426]
[1747470485807,4.01445202,2491.0,2490.9,0.38274426]
[1747470485977,4.01445202,2491.0,2490.8,8.247]
[1747470486378,4.01439397,2491.1,2490.8,8.247]
[1747470486591,4.01451581,2491.0,2490.7,17.341]
[1747470486764,4.01445658,2491.0,2490.7,25.588]
[1747470486968,0.7725,2491.4,2490.7,25.588]
[1747470487268,4.01445393,2491.0,2490.8,0.8296]
[1747470487479,4.01445393,2491.0,2490.8,9.0766]
[1747470487681,4.01445393,2491.0,2490.8,8.247]
[1747470487881,4.0147361,2490.9,2490.8,8.247]
[1747470488800,4.01477436,2490.8,2490.7,25.588]
[1747470489220,8.7725,2491.4,2490.7,8.247]
[1747470489390,4.01472793,2490.9,2490.5,8.247]
[1747470489571,8.24,2491.1,2490.5,8.247]
[1747470489772,4.01461666,2490.9,2490.5,8.247]
[1747470490968,0.37363432,2491.0,2490.5,8.247]
[1747470491171,0.7658,2490.9,2490.5,8.247]
[1747470491383,2.07737775,2490.9,2490.2,1.27971272]
[1747470491587,1.13943432,2490.9,2490.5,4.01520318]
[1747470491823,0.37363432,2490.9,2490.6,4.81354909]
[1747470491997,0.37363432,2490.9,2490.7,4.01484978]
[1747470492195,0.37363432,2490.9,2490.8,4.01477436]
[1747470492495,4.01385019,2491.4,2490.8,4.01477436]
[1747470492496,0.37363432,2491.1,2490.8,18.28046385]
[1747470492697,0.37363432,2491.1,2491.0,4.77075202]
[1747470493422,0.37363432,2491.6,2491.3,4.01381665]
[1747470493590,0.37363432,2491.6,2491.3,8.248]
[1747470494292,4.01380749,2491.4,2491.3,8.248]
[1747470494487,4.01380749,2491.4,2491.0,0.7563]
[1747470494712,0.43874418,2491.4,2490.8,0.7563]
[1747470494891,4.01448252,2491.0,2490.8,9.0043]
[1747470495084,4.01448252,2491.0,2490.6,9.0033]
[1747470495295,4.01425343,2491.2,2490.6,9.0033]
[1747470495489,0.43874418,2491.4,2490.6,9.0033]
[1747470495721,4.01406116,2491.3,2490.9,0.38383788]
[1747470496810,4.01406116,2491.3,2491.0,0.38383788]
[1747470497012,4.38873094,2491.2,2491.0,0.38383788]
[1747470497212,4.76769087,2491.1,2491.0,0.38383788]
[1747470497601,13.00269087,2491.1,2491.0,0.38383788]
[1747470497921,4.99233379,2491.1,2491.0,0.38383788]
[1747470498108,13.60184682,2491.1,2491.0,0.38383788]
[1747470498925,5.1422039,2491.1,2491.0,0.38383788]
[1747470499735,6.88134608,2491.1,2491.0,0.38383788]
[1747470500227,7.10604062,2491.1,2491.0,0.38383788]
[1747470501098,6.35264062,2491.1,2491.0,0.38383788]
[1747470501298,12.84749844,2491.1,2491.0,0.38383788]
[1747470501700,12.6228039,2491.1,2491.0,0.38383788]
[1747470502130,4.01477436,2490.8,2490.7,0.38383788]
[1747470502735,5.15388739,2490.8,2490.7,0.38383788]
[1747470502940,6.41127225,2490.8,2490.7,0.38383788]
[1747470503630,4.01525798,2490.5,2490.4,0.48121272]
[1747470504324,4.38977101,2490.5,2490.4,0.48121272]
[1747470504521,0.37451303,2490.5,2490.4,0.48121272]
[1747470504734,4.38977101,2490.5,2490.4,0.48121272]
[1747470504937,4.01558045,2490.3,2490.1,8.233]
[1747470505167,4.0157417,2490.2,2490.1,8.233]
[1747470505335,4.01590297,2490.1,2490.0,8.233]
[1747470506208,4.01558518,2490.3,2490.0,9.18543127]
[1747470506415,4.01558518,2490.3,2490.0,8.233]
[1747470506619,4.38932893,2490.3,2490.0,8.233]
[1747470507227,4.01575217,2490.2,2490.0,8.233]
[1747470508847,4.01564379,2490.3,2490.0,8.233]
[1747470509150,4.01585282,2490.2,2490.0,8.233]
[1747470509345,4.01592532,2490.1,2489.6,6.83265749]
[1747470509549,4.01558119,2490.3,2489.7,6.01775749]
[1747470509716,4.01558119,2490.3,2489.8,4.01630677]
[1747470509911,8.232,2490.4,2489.7,10.03428124]
[1747470510119,12.0148913,2490.8,2490.1,4.01579039]
[1747470510120,12.24708164,2490.7,2490.1,4.01579039]
[1747470510426,0.37356398,2490.6,2490.3,0.8149]
[1747470510841,4.01525798,2490.5,2490.3,8.235]
[1747470511221,4.0154192,2490.4,2490.3,8.235]
[1747470511514,4.01527635,2490.5,2490.2,6.01775749]
[1747470511720,4.01549086,2490.4,2490.2,6.01775749]
[1747470511946,4.01558045,2490.3,2490.2,6.01775749]
[1747470512513,0.37358415,2490.4,2490.2,6.01775749]
[1747470512716,4.38910758,2490.4,2490.2,6.01775749]
[1747470513152,4.01552343,2490.4,2490.2,6.01775749]
[1747470513620,4.01568905,2490.3,2489.9,6.01775749]
[1747470513819,12.24615331,2490.6,2489.9,6.01775749]
[1747470514122,4.0159274,2490.1,2489.9,6.01775749]
[1747470514441,4.0159274,2490.1,2490.0,6.01775749]
[1747470514646,4.01581138,2490.2,2490.0,6.01775749]
[1747470515819,4.01565962,2490.3,2490.0,6.01775749]
[1747470516023,4.01527663,2490.5,2490.0,10.03371764]
[1747470516222,4.01527663,2490.5,2490.0,12.34371156]
[1747470516418,12.24414748,2490.6,2490.1,4.01586604]
[1747470516738,4.77766757,2490.7,2490.3,0.8186]
[1747470516739,0.37356875,2490.5,2490.3,0.8186]
[1747470517257,0.37356875,2490.5,2490.3,4.83415965]
[1747470517461,0.37356875,2490.5,2490.3,13.06915965]
[1747470517700,0.37356875,2490.8,2490.4,7.9264492]
[1747470517840,0.37356875,2490.8,2490.4,11.94173982]
[1747470518657,4.3883085,2490.9,2490.4,11.94173982]
[1747470518824,4.01479192,2490.8,2490.4,7.9264492]
[1747470519153,0.37356875,2490.9,2490.4,7.9264492]
[1747470519453,4.01525798,2490.5,2490.4,6.01775749]
[1747470519757,4.01507322,2490.7,2490.4,6.01775749]
[1747470519918,4.01477436,2490.8,2490.4,6.01775749]
[1747470520122,4.01501691,2490.7,2490.4,6.01775749]
[1747470520553,4.38838534,2490.8,2490.4,6.01775749]
[1747470520726,4.01495036,2490.7,2490.4,6.01775749]
[1747470522465,4.01493556,2490.7,2490.4,6.01775749]
[1747470522674,4.01510322,2490.6,2490.4,6.01775749]
[1747470523235,4.01525798,2490.5,2490.4,6.01775749]
[1747470523461,4.0157417,2490.2,2490.1,6.01775749]
[1747470524571,4.01564223,2490.3,2490.1,6.01775749]
[1747470524972,4.01545111,2490.4,2490.1,6.01775749]
[1747470525278,4.01511299,2490.6,2490.1,11.99034513]
[1747470525673,4.0147737,2490.9,2490.3,4.01550464]
[1747470526042,4.23921862,2490.9,2490.3,4.01550464]
[1747470526365,4.23921862,2490.9,2490.4,4.01540665]
[1747470526558,4.23921862,2490.9,2490.5,8.235]
[1747470526878,0.37423069,2490.8,2490.5,8.235]
[1747470527274,4.38902714,2490.8,2490.5,8.235]
[1747470527473,0.37423069,2490.8,2490.5,8.235]
[1747470527682,0.37423069,2490.8,2490.3,8.235]
[1747470527875,0.37423069,2490.7,2490.5,0.769]
[1747470528674,0.37423069,2490.7,2490.6,4.01509676]
[1747470528876,0.37423069,2490.7,2490.6,6.01775749]
[1747470529079,0.37423069,2490.9,2490.6,6.01775749]
[1747470529450,4.38884647,2490.9,2490.6,6.01775749]
[1747470529782,0.37423069,2490.9,2490.6,6.01775749]
[1747470530080,4.23896111,2491.0,2490.6,6.01775749]
[1747470530274,4.23896111,2491.0,2490.7,0.38429965]
[1747470530481,4.01451619,2491.0,2490.7,0.38429965]
[1747470530676,4.01430009,2491.1,2490.7,0.38429965]
[1747470530882,4.01448922,2491.0,2490.7,0.38429965]